[Event "*** Titled Tuesday Blitz"]
[Site "Chess.com"]
[Date "2019.09.03"]
[Round "8"]
[White "matiss90"]
[Black "2nd_life"]
[Result "1/2-1/2"]
[WhiteElo "2535"]
[BlackElo "2391"]
[TimeControl "180+2"]
[EndTime "16:55:00 PDT"]
[Termination "Game drawn by repetition"]

1. e4 {[%clk 0:02:58.5]} 1... e5 {[%clk 0:03:00.7]} 2. Nf3 {[%clk 0:02:59.1]}
2... Nc6 {[%clk 0:03:02.1]} 3. d4 {[%clk 0:02:59.2]} 3... exd4 {[%clk 0:03:02]}
4. Nxd4 {[%clk 0:03:01.1]} 4... Bb4+ {[%clk 0:03:02.6]} 5. c3 {[%clk 0:03:01.9]}
5... Be7 {[%clk 0:03:03.4]} 6. Nxc6 {[%clk 0:02:52]} 6... bxc6 {[%clk
0:03:03.8]} 7. Bd3 {[%clk 0:02:53.1]} 7... d6 {[%clk 0:02:50.6]} 8. O-O {[%clk
0:02:53.9]} 8... Nf6 {[%clk 0:02:48.6]} 9. f4 {[%clk 0:02:54.7]} 9... Nd7 {[%clk
0:02:46.8]} 10. Be3 {[%clk 0:02:51.4]} 10... O-O {[%clk 0:02:41.1]} 11. Nd2
{[%clk 0:02:52.3]} 11... a5 {[%clk 0:02:36.5]} 12. Rf3 {[%clk 0:02:44.6]} 12...
Re8 {[%clk 0:02:30.7]} 13. e5 {[%clk 0:02:27]} 13... Nf8 {[%clk 0:02:20.4]} 14.
f5 {[%clk 0:02:17.8]} 14... dxe5 {[%clk 0:01:59.6]} 15. Ne4 {[%clk 0:02:16]}
15... Ba6 {[%clk 0:01:51.9]} 16. Bxa6 {[%clk 0:02:14.8]} 16... Qxd1+ {[%clk
0:01:51.8]} 17. Rxd1 {[%clk 0:02:15.5]} 17... Rxa6 {[%clk 0:01:53.7]} 18. b3
{[%clk 0:01:57.1]} 18... f6 {[%clk 0:01:43.4]} 19. g4 {[%clk 0:01:51.4]} 19...
Raa8 {[%clk 0:01:34]} 20. Rff1 {[%clk 0:01:50.5]} 20... Red8 {[%clk 0:01:32.3]}
21. Kf2 {[%clk 0:01:51.5]} 21... Kf7 {[%clk 0:01:26.3]} 22. Ke2 {[%clk
0:01:50.1]} 22... a4 {[%clk 0:01:20.2]} 23. b4 {[%clk 0:01:50.8]} 23... Nd7
{[%clk 0:01:18]} 24. a3 {[%clk 0:01:06.6]} 24... Nb6 {[%clk 0:01:16.9]} 25. Bxb6
{[%clk 0:00:54.3]} 25... cxb6 {[%clk 0:01:17.6]} 26. c4 {[%clk 0:00:51.6]} 26...
h5 {[%clk 0:00:59.5]} 27. h3 {[%clk 0:00:38.1]} 27... hxg4 {[%clk 0:01:00]} 28.
hxg4 {[%clk 0:00:39.1]} 28... Rxd1 {[%clk 0:00:41.5]} 29. Rxd1 {[%clk
0:00:39.8]} 29... Rh8 {[%clk 0:00:43]} 30. Rd7 {[%clk 0:00:40.7]} 30... Rh2+
{[%clk 0:00:40.2]} 31. Nf2 {[%clk 0:00:38.5]} 31... Rg2 {[%clk 0:00:23.5]} 32.
Ra7 {[%clk 0:00:39.1]} 32... b5 {[%clk 0:00:21.5]} 33. cxb5 {[%clk 0:00:32.3]}
33... cxb5 {[%clk 0:00:23.4]} 34. Kf3 {[%clk 0:00:31.4]} 34... Rg1 {[%clk
0:00:24.5]} 35. Ne4 {[%clk 0:00:26.6]} 35... Ra1 {[%clk 0:00:11.5]} 36. Nd6+
{[%clk 0:00:26.9]} 36... Kf8 {[%clk 0:00:12.7]} 37. Ra8+ {[%clk 0:00:27.5]}
37... Bd8 {[%clk 0:00:14]} 38. Nxb5 {[%clk 0:00:20.9]} 38... Ke7 {[%clk
0:00:13.2]} 39. Ra7+ {[%clk 0:00:20.4]} 39... Ke8 {[%clk 0:00:10.5]} 40. Nd6+
{[%clk 0:00:17]} 40... Kf8 {[%clk 0:00:11.1]} 41. Rf7+ {[%clk 0:00:13.8]} 41...
Kg8 {[%clk 0:00:12.1]} 42. Rd7 {[%clk 0:00:11.9]} 42... Rxa3+ {[%clk 0:00:12.7]}
43. Ke4 {[%clk 0:00:13]} 43... Bb6 {[%clk 0:00:12.2]} 44. Nc4 {[%clk 0:00:13.8]}
44... Rb3 {[%clk 0:00:13.6]} 45. g5 {[%clk 0:00:07.6]} 45... fxg5 {[%clk
0:00:06.6]} 46. f6 {[%clk 0:00:08.5]} 46... gxf6 {[%clk 0:00:03.8]} 47. Kf5
{[%clk 0:00:09.6]} 47... Rxb4 {[%clk 0:00:04.2]} 48. Nd6 {[%clk 0:00:10.5]}
48... Rd4 {[%clk 0:00:03.6]} 49. Kxf6 {[%clk 0:00:09.7]} 49... Bc5 {[%clk
0:00:03.6]} 50. Rg7+ {[%clk 0:00:10.2]} 50... Kf8 {[%clk 0:00:04.3]} 51. Rf7+
{[%clk 0:00:10.7]} 51... Kg8 {[%clk 0:00:05.7]} 52. Nf5 {[%clk 0:00:11.8]} 52...
Rf4 {[%clk 0:00:05]} 53. Kg6 {[%clk 0:00:09.5]} 53... Bf8 {[%clk 0:00:04.2]} 54.
Ra7 {[%clk 0:00:06.4]} 54... a3 {[%clk 0:00:04.4]} 55. Ra8 {[%clk 0:00:04.3]}
55... g4 {[%clk 0:00:02.9]} 56. Nh6+ {[%clk 0:00:03.8]} 56... Kh8 {[%clk
0:00:04.3]} 57. Nf7+ {[%clk 0:00:04.7]} 57... Kg8 {[%clk 0:00:05.7]} 58. Nh6+
{[%clk 0:00:05.6]} 58... Kh8 {[%clk 0:00:07.1]} 59. Nf7+ {[%clk 0:00:05.5]}
59... Kg8 {[%clk 0:00:08.5]} 60. Nh6+ {[%clk 0:00:05.4]} 1/2-1/2

[Event "*** Titled Tuesday Blitz"]
[Site "Chess.com"]
[Date "2019.09.03"]
[Round "8"]
[White "abubakrtagelsir"]
[Black "Cukiero"]
[Result "0-1"]
[WhiteElo "2251"]
[BlackElo "2403"]
[TimeControl "180+2"]
[EndTime "16:55:51 PDT"]
[Termination "Cukiero won by resignation"]

1. e4 {[%clk 0:02:58.5]} 1... c5 {[%clk 0:03:00.1]} 2. Nc3 {[%clk 0:02:59]} 2...
d6 {[%clk 0:03:00.2]} 3. f4 {[%clk 0:02:58.8]} 3... g6 {[%clk 0:03:00.8]} 4. Nf3
{[%clk 0:02:59.4]} 4... Bg7 {[%clk 0:02:59.9]} 5. Bb5+ {[%clk 0:02:59.9]} 5...
Bd7 {[%clk 0:03:00.3]} 6. Bc4 {[%clk 0:03:00.2]} 6... e6 {[%clk 0:02:54.5]} 7.
d4 {[%clk 0:02:58.1]} 7... cxd4 {[%clk 0:02:43.9]} 8. Nxd4 {[%clk 0:02:57.5]}
8... a6 {[%clk 0:02:40.8]} 9. Be3 {[%clk 0:02:57.5]} 9... Nc6 {[%clk 0:02:39.5]}
10. Qd2 {[%clk 0:02:55.8]} 10... b5 {[%clk 0:02:26.6]} 11. Bb3 {[%clk
0:02:46.1]} 11... b4 {[%clk 0:02:20.5]} 12. Nce2 {[%clk 0:02:40.9]} 12... Nf6
{[%clk 0:02:19]} 13. Ng3 {[%clk 0:02:36.9]} 13... O-O {[%clk 0:01:59.1]} 14.
O-O-O {[%clk 0:02:36.2]} 14... a5 {[%clk 0:01:51.9]} 15. Rhe1 {[%clk 0:02:10.1]}
15... a4 {[%clk 0:01:50.4]} 16. Bc4 {[%clk 0:02:10.7]} 16... b3 {[%clk
0:01:43.1]} 17. cxb3 {[%clk 0:02:10.3]} 17... axb3 {[%clk 0:01:41.2]} 18. Bxb3
{[%clk 0:02:11]} 18... Na5 {[%clk 0:01:38.8]} 19. Kb1 {[%clk 0:02:06.6]} 19...
Nxb3 {[%clk 0:01:27.5]} 20. Nxb3 {[%clk 0:02:06.9]} 20... Ra6 {[%clk 0:01:18.8]}
21. Bd4 {[%clk 0:02:00.5]} 21... Qa8 {[%clk 0:01:16.1]} 22. Nc1 {[%clk
0:01:59.3]} 22... Rc8 {[%clk 0:01:06.8]} 23. Bc3 {[%clk 0:01:50.1]} 23... Ba4
{[%clk 0:00:59.3]} 24. b3 {[%clk 0:01:44.6]} 24... Bc6 {[%clk 0:00:59.6]} 25.
Bb2 {[%clk 0:01:40.7]} 25... Nxe4 {[%clk 0:00:58]} 26. Nxe4 {[%clk 0:01:38]}
26... Bxe4+ {[%clk 0:00:59.1]} 27. Rxe4 {[%clk 0:01:29]} 27... Qxe4+ {[%clk
0:00:58.7]} 28. Qd3 {[%clk 0:01:25.1]} 28... Qxd3+ {[%clk 0:00:53.3]} 29. Rxd3
{[%clk 0:01:25.5]} 29... Rac6 {[%clk 0:00:49.3]} 30. Ba3 {[%clk 0:00:58.6]}
30... d5 {[%clk 0:00:48]} 31. Rd2 {[%clk 0:00:50.3]} 31... Bf8 {[%clk
0:00:39.6]} 32. Bb2 {[%clk 0:00:47.6]} 32... Bb4 {[%clk 0:00:39.3]} 33. Re2
{[%clk 0:00:44.2]} 33... Bc3 {[%clk 0:00:38.7]} 34. Nd3 {[%clk 0:00:45]} 34...
Bxb2 {[%clk 0:00:37.9]} 35. Kxb2 {[%clk 0:00:44.9]} 35... f6 {[%clk 0:00:37.3]}
36. a4 {[%clk 0:00:41.5]} 36... Kf7 {[%clk 0:00:37.7]} 37. b4 {[%clk 0:00:37]}
37... Rc4 {[%clk 0:00:34.5]} 38. Rd2 {[%clk 0:00:30.8]} 38... h6 {[%clk
0:00:23.5]} 39. a5 {[%clk 0:00:30.6]} 39... g5 {[%clk 0:00:24.5]} 40. g3 {[%clk
0:00:30.4]} 40... gxf4 {[%clk 0:00:25.5]} 41. gxf4 {[%clk 0:00:31]} 41... Ke7
{[%clk 0:00:21.8]} 42. Kb3 {[%clk 0:00:29.6]} 42... Rc3+ {[%clk 0:00:22.3]} 43.
Ka4 {[%clk 0:00:29.4]} 43... Kd6 {[%clk 0:00:22.9]} 44. Nc5 {[%clk 0:00:21.2]}
44... R8xc5 {[%clk 0:00:20.2]} 45. bxc5+ {[%clk 0:00:21.4]} 45... Kxc5 {[%clk
0:00:21.6]} 46. Rb2 {[%clk 0:00:20.2]} 46... Rc1 {[%clk 0:00:22]} 47. Ra2 {[%clk
0:00:16.8]} 47... Rc4+ {[%clk 0:00:21.4]} 48. Ka3 {[%clk 0:00:16.1]} 48... Kb5
{[%clk 0:00:21.8]} 49. Re2 {[%clk 0:00:16.1]} 49... Re4 {[%clk 0:00:21.3]} 50.
Rc2 {[%clk 0:00:08.8]} 50... Re3+ {[%clk 0:00:20.2]} 51. Kb2 {[%clk 0:00:09.1]}
51... Kxa5 {[%clk 0:00:21.3]} 52. Rc7 {[%clk 0:00:09.8]} 52... Re2+ {[%clk
0:00:20.3]} 53. Kc3 {[%clk 0:00:10.3]} 53... Rxh2 {[%clk 0:00:20.9]} 54. Rf7
{[%clk 0:00:10.9]} 54... f5 {[%clk 0:00:21.4]} 55. Rf6 {[%clk 0:00:10.8]} 55...
Re2 {[%clk 0:00:22]} 56. Rxh6 {[%clk 0:00:10]} 56... Re4 {[%clk 0:00:23]} 57.
Rh4 {[%clk 0:00:09.5]} 57... Kb5 {[%clk 0:00:22.8]} 58. Kd3 {[%clk 0:00:10.3]}
58... Kc5 {[%clk 0:00:24]} 59. Rh6 {[%clk 0:00:10.6]} 59... Kd6 {[%clk
0:00:24.4]} 60. Rh4 {[%clk 0:00:11.4]} 60... Ra4 {[%clk 0:00:24.5]} 61. Kc3
{[%clk 0:00:09.6]} 61... Kc5 {[%clk 0:00:24.4]} 62. Kd3 {[%clk 0:00:10.2]} 62...
Ra3+ {[%clk 0:00:25.1]} 63. Ke2 {[%clk 0:00:10.7]} 63... Kd4 {[%clk 0:00:25.8]}
64. Rh6 {[%clk 0:00:11.1]} 64... Re3+ {[%clk 0:00:23.8]} 65. Kf2 {[%clk
0:00:11.7]} 65... Re4 {[%clk 0:00:24.7]} 66. Kf3 {[%clk 0:00:12.4]} 66... Kd3
{[%clk 0:00:26]} 67. Rg6 {[%clk 0:00:12.2]} 67... d4 {[%clk 0:00:27]} 68. Rg8
{[%clk 0:00:11.3]} 68... Kd2 {[%clk 0:00:27.8]} 69. Ra8 {[%clk 0:00:11.3]} 69...
d3 {[%clk 0:00:27.9]} 70. Ra2+ {[%clk 0:00:11.3]} 70... Kc1 {[%clk 0:00:28.9]}
71. Ra1+ {[%clk 0:00:12]} 71... Kb2 {[%clk 0:00:29.3]} 72. Ra8 {[%clk
0:00:11.7]} 72... d2 {[%clk 0:00:29.9]} 73. Rb8+ {[%clk 0:00:13.6]} 73... Kc3
{[%clk 0:00:28.9]} 74. Rc8+ {[%clk 0:00:14.6]} 74... Kd3 {[%clk 0:00:29.8]} 75.
Rd8+ {[%clk 0:00:15.6]} 75... Rd4 {[%clk 0:00:31]} 76. Rxd4+ {[%clk 0:00:16.1]}
76... Kxd4 {[%clk 0:00:32.6]} 0-1

[Event "*** Titled Tuesday Blitz"]
[Site "Chess.com"]
[Date "2019.09.03"]
[Round "8"]
[White "NormWeinstein"]
[Black "ChristopherYoo"]
[Result "1/2-1/2"]
[WhiteElo "2422"]
[BlackElo "2578"]
[TimeControl "180+2"]
[EndTime "16:56:17 PDT"]
[Termination "Game drawn by repetition"]

1. e4 {[%clk 0:03:01.9]} 1... c5 {[%clk 0:02:59.1]} 2. Nf3 {[%clk 0:03:02.8]}
2... d6 {[%clk 0:03:00.3]} 3. Nc3 {[%clk 0:03:03.8]} 3... Nf6 {[%clk 0:02:59.5]}
4. e5 {[%clk 0:03:04.9]} 4... dxe5 {[%clk 0:03:00.6]} 5. Nxe5 {[%clk 0:03:06.1]}
5... a6 {[%clk 0:02:45.6]} 6. g3 {[%clk 0:03:06]} 6... Qd6 {[%clk 0:02:44.9]} 7.
Qe2 {[%clk 0:02:53.7]} 7... Nc6 {[%clk 0:02:43.9]} 8. Nxc6 {[%clk 0:02:53.2]}
8... Qxc6 {[%clk 0:02:44.3]} 9. Rg1 {[%clk 0:02:53.3]} 9... Bg4 {[%clk
0:02:45.1]} 10. Qe3 {[%clk 0:02:51.6]} 10... O-O-O {[%clk 0:02:44.7]} 11. Bg2
{[%clk 0:02:49.8]} 11... Qc7 {[%clk 0:02:43.6]} 12. d3 {[%clk 0:02:42.8]} 12...
e6 {[%clk 0:02:43.9]} 13. Bd2 {[%clk 0:02:35.3]} 13... Nd5 {[%clk 0:02:41.2]}
14. Nxd5 {[%clk 0:02:17.8]} 14... exd5 {[%clk 0:02:43.1]} 15. h3 {[%clk
0:02:11.5]} 15... Bd6 {[%clk 0:02:16.8]} 16. hxg4 {[%clk 0:01:52.9]} 16... Rhe8
{[%clk 0:02:15.8]} 17. Be4 {[%clk 0:01:53.4]} 17... Qc6 {[%clk 0:01:24.4]} 18.
f3 {[%clk 0:01:45.9]} 18... Qa4 {[%clk 0:01:20.1]} 19. b3 {[%clk 0:01:20]} 19...
Qa3 {[%clk 0:01:20]} 20. Bc3 {[%clk 0:00:54.7]} 20... d4 {[%clk 0:01:14.3]} 21.
Bxd4 {[%clk 0:00:40.4]} 21... cxd4 {[%clk 0:01:13.7]} 22. Qe2 {[%clk 0:00:40.5]}
22... g6 {[%clk 0:01:09.4]} 23. g5 {[%clk 0:00:39.9]} 23... h6 {[%clk
0:01:04.7]} 24. f4 {[%clk 0:00:33.8]} 24... hxg5 {[%clk 0:01:05.5]} 25. fxg5
{[%clk 0:00:34.4]} 25... Qa5+ {[%clk 0:01:06.8]} 26. Kf1 {[%clk 0:00:27]} 26...
Qxg5 {[%clk 0:01:07.3]} 27. Qf3 {[%clk 0:00:27.5]} 27... Re7 {[%clk 0:01:05.3]}
28. g4 {[%clk 0:00:18.3]} 28... Rh8 {[%clk 0:00:59.8]} 29. Re1 {[%clk
0:00:15.8]} 29... Rh2 {[%clk 0:00:36.5]} 30. Rg2 {[%clk 0:00:16.1]} 30... Rh1+
{[%clk 0:00:37.3]} 31. Rg1 {[%clk 0:00:15.6]} 31... Rxg1+ {[%clk 0:00:30.2]} 32.
Kxg1 {[%clk 0:00:16.1]} 32... Kb8 {[%clk 0:00:31.7]} 33. Re2 {[%clk 0:00:15.1]}
33... f5 {[%clk 0:00:30.2]} 34. Bd5 {[%clk 0:00:11.4]} 34... fxg4 {[%clk
0:00:18.9]} 35. Qf8+ {[%clk 0:00:11.4]} 35... Ka7 {[%clk 0:00:20]} 36. Rxe7
{[%clk 0:00:12.6]} 36... Bxe7 {[%clk 0:00:16.1]} 37. Qf7 {[%clk 0:00:14]} 37...
Qe3+ {[%clk 0:00:15]} 38. Kg2 {[%clk 0:00:14.7]} 38... Qe2+ {[%clk 0:00:11.8]}
39. Kg3 {[%clk 0:00:14.6]} 39... Bd6+ {[%clk 0:00:11.6]} 40. Kh4 {[%clk
0:00:15.4]} 40... Be7+ {[%clk 0:00:10.5]} 41. Kg3 {[%clk 0:00:14.8]} 41... Kb6
{[%clk 0:00:03.6]} 42. Qe6+ {[%clk 0:00:13.9]} 42... Qxe6 {[%clk 0:00:04.2]} 43.
Bxe6 {[%clk 0:00:15.2]} 43... Kc5 {[%clk 0:00:05.7]} 44. a3 {[%clk 0:00:14.8]}
44... Kb6 {[%clk 0:00:04.8]} 45. b4 {[%clk 0:00:15.5]} 45... a5 {[%clk
0:00:06.1]} 46. bxa5+ {[%clk 0:00:15.5]} 46... Kxa5 {[%clk 0:00:06.6]} 47. a4
{[%clk 0:00:14.6]} 47... Kxa4 {[%clk 0:00:07.1]} 48. Kxg4 {[%clk 0:00:16.1]}
48... Kb4 {[%clk 0:00:07]} 49. Bb3 {[%clk 0:00:17.4]} 49... Kc3 {[%clk
0:00:08.1]} 50. Kf4 {[%clk 0:00:18.8]} 50... g5+ {[%clk 0:00:09.4]} 51. Kg4
{[%clk 0:00:19.8]} 51... b5 {[%clk 0:00:10.6]} 52. Kf5 {[%clk 0:00:20.8]} 52...
Kd2 {[%clk 0:00:11.3]} 53. Ke4 {[%clk 0:00:20.8]} 53... Bf6 {[%clk 0:00:06.2]}
54. Kf5 {[%clk 0:00:21.4]} 54... Bd8 {[%clk 0:00:07.2]} 55. Ke4 {[%clk
0:00:22.9]} 55... Kc3 {[%clk 0:00:06.7]} 56. Kf5 {[%clk 0:00:23.3]} 56... b4
{[%clk 0:00:06.6]} 57. Ke4 {[%clk 0:00:23.9]} 57... Bc7 {[%clk 0:00:06.5]} 58.
Kf5 {[%clk 0:00:24.7]} 58... Bf4 {[%clk 0:00:07.8]} 59. Ke4 {[%clk 0:00:26.2]}
59... Kd2 {[%clk 0:00:06.4]} 60. Kf5 {[%clk 0:00:27.1]} 60... Be3 {[%clk
0:00:04.5]} 61. Kg4 {[%clk 0:00:28.3]} 61... Ke2 {[%clk 0:00:05.2]} 62. Ba4
{[%clk 0:00:29.6]} 62... Bd2 {[%clk 0:00:04.4]} 63. Bb3 {[%clk 0:00:30.9]} 63...
Kf2 {[%clk 0:00:03.6]} 64. Ba4 {[%clk 0:00:32.3]} 64... Bc1 {[%clk 0:00:05]} 65.
Bb3 {[%clk 0:00:33.7]} 65... Ke2 {[%clk 0:00:06.3]} 66. Ba4 {[%clk 0:00:34.7]}
66... Be3 {[%clk 0:00:05.3]} 67. Bb3 {[%clk 0:00:36.2]} 67... Kd2 {[%clk
0:00:07]} 68. Ba4 {[%clk 0:00:37.3]} 68... Kc1 {[%clk 0:00:07.9]} 69. Bb3 {[%clk
0:00:38.8]} 69... Kb2 {[%clk 0:00:07]} 70. Kf3 {[%clk 0:00:40.2]} 70... Ka3
{[%clk 0:00:07.7]} 71. Kg4 {[%clk 0:00:40.6]} 71... Bd2 {[%clk 0:00:07.8]} 72.
Kf3 {[%clk 0:00:36]} 72... Kb2 {[%clk 0:00:09.2]} 73. Kg4 {[%clk 0:00:37.3]}
73... Kc1 {[%clk 0:00:10.8]} 74. Ba4 {[%clk 0:00:38.3]} 74... Kd1 {[%clk
0:00:11.9]} 75. Bb3 {[%clk 0:00:39.7]} 75... Be3 {[%clk 0:00:10]} 76. Ba4 {[%clk
0:00:37]} 76... Bf4 {[%clk 0:00:08.9]} 77. Bb3 {[%clk 0:00:37.8]} 77... Kd2
{[%clk 0:00:08.5]} 78. Ba4 {[%clk 0:00:38.1]} 78... Ke3 {[%clk 0:00:06.2]} 79.
Bb3 {[%clk 0:00:38.2]} 79... Kf2 {[%clk 0:00:07.5]} 80. Ba4 {[%clk 0:00:39]}
80... Be3 {[%clk 0:00:08.4]} 81. Bb3 {[%clk 0:00:40.2]} 81... Bc1 {[%clk
0:00:10.3]} 82. Ba4 {[%clk 0:00:41.1]} 82... Bd2 {[%clk 0:00:12.2]} 83. Bb3
{[%clk 0:00:42.3]} 83... Bc1 {[%clk 0:00:14.1]} 84. Ba4 {[%clk 0:00:43.5]} 84...
Ke2 {[%clk 0:00:11.8]} 85. Bb3 {[%clk 0:00:43.8]} 85... Kd1 {[%clk 0:00:10.8]}
86. Ba4 {[%clk 0:00:38.9]} 86... Bd2 {[%clk 0:00:07.8]} 87. Bb3 {[%clk
0:00:28.4]} 87... Kc1 {[%clk 0:00:04.2]} 88. Ba4 {[%clk 0:00:28.2]} 88... Be3
{[%clk 0:00:04.1]} 89. Bb3 {[%clk 0:00:29.2]} 89... Kb2 {[%clk 0:00:05.5]} 90.
Ba4 {[%clk 0:00:29.8]} 90... Bd2 {[%clk 0:00:05]} 91. Bb3 {[%clk 0:00:30.9]}
91... Ka3 {[%clk 0:00:05.1]} 92. Kf3 {[%clk 0:00:30.3]} 92... Kb2 {[%clk
0:00:04.8]} 93. Kg4 {[%clk 0:00:30.8]} 1/2-1/2

[Event "*** Titled Tuesday Blitz"]
[Site "Chess.com"]
[Date "2019.09.03"]
[Round "8"]
[White "chegueps"]
[Black "przemekpiotrowski"]
[Result "1-0"]
[WhiteElo "2553"]
[BlackElo "2404"]
[TimeControl "180+2"]
[EndTime "16:56:45 PDT"]
[Termination "chegueps won by resignation"]

1. e4 {[%clk 0:03:01.9]} 1... c5 {[%clk 0:03:00.3]} 2. Nf3 {[%clk 0:02:55.7]}
2... Nc6 {[%clk 0:03:01]} 3. Bb5 {[%clk 0:02:56.2]} 3... g6 {[%clk 0:03:00.8]}
4. c3 {[%clk 0:02:57.4]} 4... Bg7 {[%clk 0:03:00.3]} 5. d4 {[%clk 0:02:58.1]}
5... cxd4 {[%clk 0:03:00.8]} 6. cxd4 {[%clk 0:03:00]} 6... Qb6 {[%clk
0:02:49.4]} 7. Nc3 {[%clk 0:02:59.9]} 7... Nxd4 {[%clk 0:02:34]} 8. Nd5 {[%clk
0:02:50.8]} 8... Nxf3+ {[%clk 0:02:31.1]} 9. Qxf3 {[%clk 0:02:49.9]} 9... Qd8
{[%clk 0:02:26.5]} 10. Bf4 {[%clk 0:02:46.3]} 10... e5 {[%clk 0:02:27]} 11. Rc1
{[%clk 0:02:32.6]} 11... exf4 {[%clk 0:02:05.8]} 12. Nc7+ {[%clk 0:02:21.8]}
12... Kf8 {[%clk 0:02:05.8]} 13. Nxa8 {[%clk 0:02:19.9]} 13... Qa5+ {[%clk
0:02:03.5]} 14. Kd1 {[%clk 0:02:21.4]} 14... Ne7 {[%clk 0:01:54.8]} 15. Qd3
{[%clk 0:02:11.1]} 15... Bxb2 {[%clk 0:01:46.3]} 16. Rc2 {[%clk 0:02:06.3]}
16... Be5 {[%clk 0:01:46.3]} 17. Ke2 {[%clk 0:02:00.6]} 17... Kg7 {[%clk
0:01:45.3]} 18. Rhc1 {[%clk 0:01:54.6]} 18... d5 {[%clk 0:01:38.9]} 19. Nc7
{[%clk 0:01:09.5]} 19... dxe4 {[%clk 0:01:06.1]} 20. Qxe4 {[%clk 0:00:53.2]}
20... Bxc7 {[%clk 0:01:06.3]} 21. Qd4+ {[%clk 0:00:52.5]} 21... f6 {[%clk
0:00:45.4]} 22. Rxc7 {[%clk 0:00:45.4]} 22... Qxb5+ {[%clk 0:00:46.5]} 23. Ke1
{[%clk 0:00:41.9]} 23... Re8 {[%clk 0:00:44.6]} 24. Qd6 {[%clk 0:00:40.6]} 24...
Kf7 {[%clk 0:00:36.1]} 25. f3 {[%clk 0:00:17.8]} 25... b6 {[%clk 0:00:24.6]} 26.
R1c6 {[%clk 0:00:15.2]} 26... Qb1+ {[%clk 0:00:18.3]} 27. Kf2 {[%clk 0:00:15.7]}
27... Qb2+ {[%clk 0:00:19.1]} 28. Rc2 {[%clk 0:00:13.2]} 28... Qb5 {[%clk
0:00:18.1]} 29. Qxf4 {[%clk 0:00:12.8]} 29... Ba6 {[%clk 0:00:18]} 30. R2c6
{[%clk 0:00:08]} 30... Kg8 {[%clk 0:00:18.2]} 31. Qxf6 {[%clk 0:00:07.5]} 31...
Qe2+ {[%clk 0:00:16]} 32. Kg3 {[%clk 0:00:08.5]} 32... Bc8 {[%clk 0:00:15.4]}
33. Rxe7 {[%clk 0:00:04.3]} 33... Qxe7 {[%clk 0:00:14.9]} 34. Qxe7 {[%clk
0:00:05.6]} 34... Rxe7 {[%clk 0:00:16.8]} 35. Rxc8+ {[%clk 0:00:07.5]} 35... Kg7
{[%clk 0:00:18]} 36. Rc2 {[%clk 0:00:08.5]} 36... Rb7 {[%clk 0:00:19.1]} 37. h4
{[%clk 0:00:09.2]} 37... Kf6 {[%clk 0:00:20.2]} 38. Kf4 {[%clk 0:00:08.4]} 38...
a5 {[%clk 0:00:20.2]} 39. Rc6+ {[%clk 0:00:08.4]} 39... Kf7 {[%clk 0:00:20.6]}
40. a4 {[%clk 0:00:08.8]} 40... b5 {[%clk 0:00:21.8]} 41. axb5 {[%clk
0:00:10.7]} 41... Rxb5 {[%clk 0:00:23.7]} 42. g4 {[%clk 0:00:11.4]} 42... h5
{[%clk 0:00:23.5]} 43. g5 {[%clk 0:00:11.5]} 43... Rb4+ {[%clk 0:00:24]} 44. Kg3
{[%clk 0:00:13]} 44... a4 {[%clk 0:00:25.3]} 45. Rf6+ {[%clk 0:00:14.4]} 45...
Kg7 {[%clk 0:00:26.5]} 46. Ra6 {[%clk 0:00:16.3]} 46... Rc4 {[%clk 0:00:27.8]}
47. Ra7+ {[%clk 0:00:17.6]} 47... Kf8 {[%clk 0:00:28.6]} 48. f4 {[%clk
0:00:17.6]} 48... Rc3+ {[%clk 0:00:28.6]} 49. Kf2 {[%clk 0:00:18.6]} 49... a3
{[%clk 0:00:30]} 50. Kg2 {[%clk 0:00:15.8]} 50... Rb3 {[%clk 0:00:30.1]} 51. Kf2
{[%clk 0:00:16.7]} 51... Rb2+ {[%clk 0:00:31.3]} 52. Kf3 {[%clk 0:00:17.8]}
52... a2 {[%clk 0:00:33.2]} 53. Ke4 {[%clk 0:00:18.6]} 53... Re2+ {[%clk
0:00:27.8]} 54. Kd5 {[%clk 0:00:19]} 54... Kg8 {[%clk 0:00:29.3]} 55. Ra8+
{[%clk 0:00:17.6]} 55... Kf7 {[%clk 0:00:30.3]} 56. Ra7+ {[%clk 0:00:19.5]}
56... Kf8 {[%clk 0:00:31.3]} 57. Kd6 {[%clk 0:00:20.3]} 57... Rf2 {[%clk
0:00:27.4]} 58. Ke5 {[%clk 0:00:21.3]} 58... Rb2 {[%clk 0:00:21.2]} 59. Ra8+
{[%clk 0:00:16.4]} 59... Ke7 {[%clk 0:00:21.6]} 60. Ra7+ {[%clk 0:00:18.3]}
60... Kf8 {[%clk 0:00:23]} 61. f5 {[%clk 0:00:17.3]} 61... Rb5+ {[%clk
0:00:23.3]} 62. Kf6 {[%clk 0:00:18.5]} 62... Rb6+ {[%clk 0:00:23.9]} 63. Ke5
{[%clk 0:00:19.2]} 63... Rb5+ {[%clk 0:00:24.5]} 64. Ke4 {[%clk 0:00:14.8]}
64... gxf5+ {[%clk 0:00:24.8]} 65. Kf4 {[%clk 0:00:16.2]} 65... Rb4+ {[%clk
0:00:20.9]} 66. Kxf5 {[%clk 0:00:16.8]} 66... Rxh4 {[%clk 0:00:22.3]} 67. Kg6
{[%clk 0:00:16.7]} 67... Rb4 {[%clk 0:00:19.7]} 68. Rxa2 {[%clk 0:00:16.6]}
68... h4 {[%clk 0:00:17]} 69. Kh7 {[%clk 0:00:15.7]} 69... Rb7+ {[%clk
0:00:17.1]} 70. Kh6 {[%clk 0:00:16.6]} 70... h3 {[%clk 0:00:17.9]} 71. g6 {[%clk
0:00:16.6]} 71... Rb4 {[%clk 0:00:18.5]} 72. Rh2 {[%clk 0:00:17.2]} 72... Rh4+
{[%clk 0:00:18.5]} 73. Kg5 {[%clk 0:00:18.6]} 73... Rh8 {[%clk 0:00:20]} 74. Kf6
{[%clk 0:00:19.6]} 74... Rh4 {[%clk 0:00:21.1]} 75. Rb2 {[%clk 0:00:18.9]} 75...
Rf4+ {[%clk 0:00:21.8]} 76. Kg5 {[%clk 0:00:20.3]} 76... Ra4 {[%clk 0:00:22.1]}
77. Kh6 {[%clk 0:00:20.4]} 77... Rh4+ {[%clk 0:00:22.2]} 78. Kg5 {[%clk
0:00:21.7]} 78... h2 {[%clk 0:00:20.3]} 79. Rb8+ {[%clk 0:00:22.1]} 79... Ke7
{[%clk 0:00:19.1]} 80. g7 {[%clk 0:00:20.3]} 80... h1=Q {[%clk 0:00:15.7]} 81.
g8=Q {[%clk 0:00:21.8]} 81... Rh5+ {[%clk 0:00:12.7]} 82. Kg6 {[%clk 0:00:23.3]}
82... Rh6+ {[%clk 0:00:11.9]} 83. Kg7 {[%clk 0:00:24.8]} 83... Qh5 {[%clk
0:00:06.3]} 84. Qd8+ {[%clk 0:00:19.9]} 84... Ke6 {[%clk 0:00:07.1]} 85. Rb6+
{[%clk 0:00:21]} 85... Kf5 {[%clk 0:00:08.1]} 86. Rb5+ {[%clk 0:00:22.5]} 86...
Kg4 {[%clk 0:00:08.7]} 87. Qd4+ {[%clk 0:00:21.8]} 87... Kg3 {[%clk 0:00:07.3]}
88. Rb3+ {[%clk 0:00:22.9]} 1-0